[Event "Early-Titled-Tuesday-Blitz-May-28-2024"]
[Site "Chess.com"]
[Date "2024.05.28"]
[Round "3"]
[White "HighLawView"]
[Black "Larina_Maria"]
[Result "0-1"]
[WhiteElo "2061"]
[BlackElo "2385"]
[TimeControl "180+1"]
[EndTime "8:28:57 PDT"]
[Termination "Larina_Maria won by checkmate"]

1. e4 {[%clk 0:02:59.9]} 1... c6 {[%clk 0:03:00.2]} 2. d4 {[%clk 0:02:56.5]}
2... d5 {[%clk 0:03:00.8]} 3. exd5 {[%clk 0:02:57.3]} 3... cxd5 {[%clk
0:03:01.7]} 4. Bd3 {[%clk 0:02:56.2]} 4... Nc6 {[%clk 0:03:01.6]} 5. c3 {[%clk
0:02:56.5]} 5... e5 {[%clk 0:03:02.1]} 6. dxe5 {[%clk 0:02:49.5]} 6... Nxe5
{[%clk 0:03:03]} 7. Qe2 {[%clk 0:02:42.3]} 7... Qe7 {[%clk 0:03:01.5]} 8. Bc2
{[%clk 0:02:39.3]} 8... Nf6 {[%clk 0:02:58.4]} 9. Bg5 {[%clk 0:02:31.4]} 9...
Bg4 {[%clk 0:02:48.7]} 10. Qe3 {[%clk 0:02:25]} 10... Nc4 {[%clk 0:02:40.9]} 11.
Ba4+ {[%clk 0:02:18.7]} 11... Bd7 {[%clk 0:02:19.2]} 12. Bxd7+ {[%clk
0:02:16.1]} 12... Kxd7 {[%clk 0:02:20.1]} 13. Qxe7+ {[%clk 0:01:56.3]} 13...
Bxe7 {[%clk 0:02:21]} 14. b3 {[%clk 0:01:55.4]} 14... Ne5 {[%clk 0:02:16.6]} 15.
Nd2 {[%clk 0:01:31.6]} 15... h6 {[%clk 0:02:15]} 16. Bh4 {[%clk 0:01:24.4]}
16... Nd3+ {[%clk 0:01:55.2]} 17. Kf1 {[%clk 0:01:24]} 17... Rac8 {[%clk
0:01:48.6]} 18. c4 {[%clk 0:01:21.7]} 18... g5 {[%clk 0:01:34.5]} 19. Bg3 {[%clk
0:01:21]} 19... Bb4 {[%clk 0:01:24.9]} 20. Rd1 {[%clk 0:01:07.6]} 20... Nb2
{[%clk 0:01:19.6]} 21. Ke2 {[%clk 0:01:06.8]} 21... Nxd1 {[%clk 0:01:18.8]} 22.
Kxd1 {[%clk 0:01:06.8]} 22... Bxd2 {[%clk 0:01:16]} 23. Kxd2 {[%clk 0:01:06.7]}
23... dxc4 {[%clk 0:01:15.8]} 24. bxc4 {[%clk 0:01:07]} 24... Rxc4 {[%clk
0:01:15.4]} 25. Nf3 {[%clk 0:01:07.7]} 25... Ne4+ {[%clk 0:01:14.7]} 26. Kd3
{[%clk 0:01:06]} 26... Nxg3 {[%clk 0:01:14.9]} 27. hxg3 {[%clk 0:01:02.4]} 27...
Ra4 {[%clk 0:01:11.7]} 28. Nxg5 {[%clk 0:01:00.7]} 28... Ke7 {[%clk 0:01:01.9]}
29. Re1+ {[%clk 0:00:56.7]} 29... Kf6 {[%clk 0:00:59.3]} 30. Ne4+ {[%clk
0:00:56.4]} 30... Kg7 {[%clk 0:00:59.8]} 31. Nc3 {[%clk 0:00:53.5]} 31... Rd8+
{[%clk 0:00:59.4]} 32. Kc2 {[%clk 0:00:51.9]} 32... Rc4 {[%clk 0:00:57.6]} 33.
Kb3 {[%clk 0:00:52.2]} 33... Rdc8 {[%clk 0:00:56.7]} 34. Nd5 {[%clk 0:00:52.1]}
34... R4c5 {[%clk 0:00:52.3]} 35. Ne7 {[%clk 0:00:49.3]} 35... R8c7 {[%clk
0:00:50.5]} 36. g4 {[%clk 0:00:47.9]} 36... Rc3+ {[%clk 0:00:50.4]} 37. Kb2
{[%clk 0:00:47.6]} 37... Rc2+ {[%clk 0:00:50.4]} 38. Kb1 {[%clk 0:00:47.8]}
38... Rxf2 {[%clk 0:00:51]} 39. Nf5+ {[%clk 0:00:46.9]} 39... Kf6 {[%clk
0:00:50.1]} 40. Nxh6 {[%clk 0:00:43.8]} 40... Kg5 {[%clk 0:00:47.4]} 41. Rh1
{[%clk 0:00:37.5]} 41... Rxg2 {[%clk 0:00:42.9]} 42. Rh5+ {[%clk 0:00:37.1]}
42... Kf4 {[%clk 0:00:41.5]} 43. Rf5+ {[%clk 0:00:36.2]} 43... Ke4 {[%clk
0:00:41]} 44. Nxf7 {[%clk 0:00:34.7]} 44... Rxg4 {[%clk 0:00:38.2]} 45. Nd6+
{[%clk 0:00:33.5]} 45... Kd3 {[%clk 0:00:34.7]} 46. Rf3+ {[%clk 0:00:32.1]}
46... Ke2 {[%clk 0:00:34.8]} 47. Rf6 {[%clk 0:00:25.3]} 47... Rd4 {[%clk
0:00:32.6]} 48. Re6+ {[%clk 0:00:24.7]} 48... Kd3 {[%clk 0:00:31]} 49. Nb5
{[%clk 0:00:23.1]} 49... Rb4+ {[%clk 0:00:30.2]} 50. Ka1 {[%clk 0:00:21]} 50...
Rc1# {[%clk 0:00:29.3]} 0-1

[Event "Early-Titled-Tuesday-Blitz-May-28-2024"]
[Site "Chess.com"]
[Date "2024.05.28"]
[Round "3"]
[White "HATilay"]
[Black "DeyanKostov"]
[Result "0-1"]
[WhiteElo "2620"]
[BlackElo "2469"]
[TimeControl "180+1"]
[EndTime "8:28:59 PDT"]
[Termination "DeyanKostov won by resignation"]

1. e4 {[%clk 0:02:57.8]} 1... c5 {[%clk 0:03:00]} 2. Nf3 {[%clk 0:02:47.8]} 2...
e6 {[%clk 0:02:59.8]} 3. d4 {[%clk 0:02:42.3]} 3... cxd4 {[%clk 0:03:00.7]} 4.
Nxd4 {[%clk 0:02:42.7]} 4... Nc6 {[%clk 0:03:00.3]} 5. Nc3 {[%clk 0:02:41.1]}
5... Qc7 {[%clk 0:03:00.6]} 6. Be3 {[%clk 0:02:39.9]} 6... a6 {[%clk 0:03:00]}
7. Qd2 {[%clk 0:02:39.4]} 7... Nf6 {[%clk 0:02:58.1]} 8. O-O-O {[%clk
0:02:39.6]} 8... Be7 {[%clk 0:02:54.2]} 9. f3 {[%clk 0:02:38.8]} 9... d6 {[%clk
0:02:52.8]} 10. g4 {[%clk 0:02:39.4]} 10... Nxd4 {[%clk 0:02:48.6]} 11. Qxd4
{[%clk 0:02:38.6]} 11... b5 {[%clk 0:02:46.8]} 12. h4 {[%clk 0:02:33.8]} 12...
e5 {[%clk 0:02:35.4]} 13. Qd2 {[%clk 0:02:33.2]} 13... Be6 {[%clk 0:02:35.8]}
14. g5 {[%clk 0:02:26]} 14... Nh5 {[%clk 0:02:28.7]} 15. Nd5 {[%clk 0:02:26.5]}
15... Bxd5 {[%clk 0:02:23.7]} 16. Qxd5 {[%clk 0:02:27.1]} 16... O-O {[%clk
0:02:19.7]} 17. Bd3 {[%clk 0:02:26.1]} 17... Rac8 {[%clk 0:02:14.9]} 18. Kb1
{[%clk 0:02:26]} 18... Qc6 {[%clk 0:02:10.4]} 19. Qb3 {[%clk 0:02:09.3]} 19...
g6 {[%clk 0:01:56.8]} 20. Rc1 {[%clk 0:02:08.2]} 20... Rb8 {[%clk 0:01:49.9]}
21. c4 {[%clk 0:02:07.3]} 21... b4 {[%clk 0:01:47.9]} 22. c5 {[%clk 0:02:07.6]}
22... dxc5 {[%clk 0:01:43.8]} 23. Bc4 {[%clk 0:01:49.9]} 23... a5 {[%clk
0:01:40]} 24. Bd5 {[%clk 0:01:38.5]} 24... Qa6 {[%clk 0:01:36.5]} 25. Rhd1
{[%clk 0:01:38.3]} 25... a4 {[%clk 0:01:29.9]} 26. Qc4 {[%clk 0:01:38.4]} 26...
Qxc4 {[%clk 0:01:29]} 27. Rxc4 {[%clk 0:01:38.2]} 27... Nf4 {[%clk 0:01:16.8]}
28. Bxc5 {[%clk 0:01:38]} 28... Bxc5 {[%clk 0:01:11.5]} 29. Rxc5 {[%clk
0:01:38]} 29... a3 {[%clk 0:01:00]} 30. Bb3 {[%clk 0:01:24.5]} 30... axb2 {[%clk
0:00:37.9]} 31. Rd7 {[%clk 0:01:14.6]} 31... Ne2 {[%clk 0:00:29.6]} 32. Rxe5
{[%clk 0:01:08.1]} 32... Rbd8 {[%clk 0:00:21.7]} 33. Ree7 {[%clk 0:01:04.5]}
33... Rxd7 {[%clk 0:00:20.1]} 34. Rxd7 {[%clk 0:01:05.4]} 34... Ng1 {[%clk
0:00:17.1]} 35. f4 {[%clk 0:01:03.8]} 35... Ne2 {[%clk 0:00:13]} 36. f5 {[%clk
0:00:47.1]} 36... Nc3+ {[%clk 0:00:12.7]} 37. Kxb2 {[%clk 0:00:47.4]} 37... Nxe4
{[%clk 0:00:13.3]} 38. f6 {[%clk 0:00:47.8]} 38... h6 {[%clk 0:00:13.4]} 39. Rd4
{[%clk 0:00:43.7]} 39... Nc5 {[%clk 0:00:09.3]} 40. Rxb4 {[%clk 0:00:43.8]}
40... Nxb3 {[%clk 0:00:09.1]} 41. Kc3 {[%clk 0:00:44.7]} 41... hxg5 {[%clk
0:00:08.8]} 42. Kxb3 {[%clk 0:00:44.1]} 42... gxh4 {[%clk 0:00:08.4]} 43. Rxh4
{[%clk 0:00:45]} 43... Rd8 {[%clk 0:00:07.8]} 44. a4 {[%clk 0:00:44.8]} 44...
Rd6 {[%clk 0:00:08]} 45. Rf4 {[%clk 0:00:45.4]} 45... Kh7 {[%clk 0:00:06.8]} 46.
a5 {[%clk 0:00:46]} 46... g5 {[%clk 0:00:07.3]} 47. Rb4 {[%clk 0:00:42.5]} 47...
Rxf6 {[%clk 0:00:05.8]} 48. Rb6 {[%clk 0:00:43.2]} 48... Rf1 {[%clk 0:00:06.4]}
49. a6 {[%clk 0:00:40.5]} 49... Rb1+ {[%clk 0:00:06]} 50. Kc4 {[%clk 0:00:40.5]}
50... Rxb6 {[%clk 0:00:06.6]} 51. a7 {[%clk 0:00:41.3]} 51... Ra6 {[%clk
0:00:07.1]} 52. a8=Q {[%clk 0:00:42.2]} 52... Rxa8 {[%clk 0:00:07.7]} 53. Kc5
{[%clk 0:00:43.1]} 53... Re8 {[%clk 0:00:08]} 54. Kd5 {[%clk 0:00:44]} 54... Re6
{[%clk 0:00:08.9]} 0-1

[Event "Early-Titled-Tuesday-Blitz-May-28-2024"]
[Site "Chess.com"]
[Date "2024.05.28"]
[Round "3"]
[White "the_chess_child"]
[Black "johnathan113"]
[Result "0-1"]
[WhiteElo "2901"]
[BlackElo "2721"]
[TimeControl "180+1"]
[EndTime "8:29:00 PDT"]
[Termination "johnathan113 won by checkmate"]

1. e4 {[%clk 0:03:00.9]} 1... c5 {[%clk 0:02:54.9]} 2. Nf3 {[%clk 0:02:59.9]}
2... g6 {[%clk 0:02:54.4]} 3. d3 {[%clk 0:02:58.5]} 3... Bg7 {[%clk 0:02:54.2]}
4. g3 {[%clk 0:02:59.1]} 4... Nc6 {[%clk 0:02:54.5]} 5. Bg2 {[%clk 0:02:59.7]}
5... d6 {[%clk 0:02:55.4]} 6. O-O {[%clk 0:03:00.2]} 6... f6 {[%clk 0:02:55.9]}
7. Re1 {[%clk 0:02:59.5]} 7... e5 {[%clk 0:02:52.8]} 8. c3 {[%clk 0:02:58.8]}
8... Nge7 {[%clk 0:02:53.6]} 9. d4 {[%clk 0:02:58.5]} 9... O-O {[%clk 0:02:53]}
10. Be3 {[%clk 0:02:58]} 10... b6 {[%clk 0:02:52.5]} 11. a4 {[%clk 0:02:56.1]}
11... Kh8 {[%clk 0:02:44.6]} 12. Na3 {[%clk 0:02:52.5]} 12... Rb8 {[%clk
0:02:37.6]} 13. d5 {[%clk 0:02:40.3]} 13... Na5 {[%clk 0:02:35.3]} 14. b4 {[%clk
0:02:40.4]} 14... Nb7 {[%clk 0:02:35.6]} 15. Nc4 {[%clk 0:02:24.2]} 15... Qc7
{[%clk 0:02:27.9]} 16. Rc1 {[%clk 0:02:15.3]} 16... Bd7 {[%clk 0:02:24.4]} 17.
Qb3 {[%clk 0:02:04.6]} 17... f5 {[%clk 0:02:20]} 18. exf5 {[%clk 0:02:03.5]}
18... gxf5 {[%clk 0:02:20.9]} 19. Red1 {[%clk 0:01:57.4]} 19... f4 {[%clk
0:02:08]} 20. Bd2 {[%clk 0:01:56.9]} 20... Bg4 {[%clk 0:02:03.8]} 21. Ng5 {[%clk
0:01:47.8]} 21... Nd8 {[%clk 0:01:38.4]} 22. Qc2 {[%clk 0:01:41.7]} 22... Ng6
{[%clk 0:01:27.5]} 23. Re1 {[%clk 0:01:35.9]} 23... Qe7 {[%clk 0:01:24.5]} 24.
Bxf4 {[%clk 0:01:24.7]} 24... Bh6 {[%clk 0:00:20.1]} 25. h4 {[%clk 0:00:17.1]}
25... Nxf4 {[%clk 0:00:17.7]} 26. gxf4 {[%clk 0:00:17.1]} 26... Rxf4 {[%clk
0:00:18.6]} 27. Re4 {[%clk 0:00:10.2]} 27... Bxg5 {[%clk 0:00:18.3]} 28. hxg5
{[%clk 0:00:10.3]} 28... Bf5 {[%clk 0:00:16.7]} 29. Qe2 {[%clk 0:00:08.4]} 29...
Bxe4 {[%clk 0:00:16.6]} 30. Bxe4 {[%clk 0:00:09.3]} 30... Qxg5+ {[%clk
0:00:16.8]} 31. Kf1 {[%clk 0:00:09.8]} 31... Rxe4 {[%clk 0:00:15.6]} 32. Qxe4
{[%clk 0:00:10.7]} 32... Qxc1+ {[%clk 0:00:15.7]} 33. Ke2 {[%clk 0:00:11.1]}
33... Qf4 {[%clk 0:00:14.3]} 34. Qd3 {[%clk 0:00:10.6]} 34... Nf7 {[%clk
0:00:11.5]} 35. Ne3 {[%clk 0:00:10.9]} 35... Ng5 {[%clk 0:00:09.7]} 36. bxc5
{[%clk 0:00:10.9]} 36... bxc5 {[%clk 0:00:09.2]} 37. Qa6 {[%clk 0:00:11]} 37...
Rb2+ {[%clk 0:00:06.4]} 38. Kd3 {[%clk 0:00:11]} 38... Qe4# {[%clk 0:00:05.9]}
0-1

[Event "Early-Titled-Tuesday-Blitz-May-28-2024"]
[Site "Chess.com"]
[Date "2024.05.28"]
[Round "3"]
[White "carloseduar100"]
[Black "noblerone"]
[Result "0-1"]
[WhiteElo "2304"]
[BlackElo "2537"]
[TimeControl "180+1"]
[EndTime "8:29:02 PDT"]
[Termination "noblerone won by resignation"]

1. d4 {[%clk 0:02:52.1]} 1... d5 {[%clk 0:02:59.6]} 2. c3 {[%clk 0:02:48.9]}
2... e6 {[%clk 0:02:59.5]} 3. e3 {[%clk 0:02:47.1]} 3... c5 {[%clk 0:02:54.8]}
4. Bd3 {[%clk 0:02:47.9]} 4... f5 {[%clk 0:02:52.3]} 5. f3 {[%clk 0:02:47.6]}
5... Nf6 {[%clk 0:02:52.5]} 6. Nd2 {[%clk 0:02:46.9]} 6... Bd6 {[%clk 0:02:53]}
7. Qe2 {[%clk 0:02:43.5]} 7... Qc7 {[%clk 0:02:53.4]} 8. dxc5 {[%clk 0:02:41.2]}
8... Bxh2 {[%clk 0:02:37.4]} 9. e4 {[%clk 0:02:41.4]} 9... Bg3+ {[%clk
0:02:35.9]} 10. Kf1 {[%clk 0:02:40.9]} 10... fxe4 {[%clk 0:02:34.4]} 11. fxe4
{[%clk 0:02:40.8]} 11... O-O {[%clk 0:02:34]} 12. Ngf3 {[%clk 0:02:38.6]} 12...
b6 {[%clk 0:02:22.3]} 13. cxb6 {[%clk 0:02:21]} 13... axb6 {[%clk 0:02:20.9]}
14. e5 {[%clk 0:02:18]} 14... Ba6 {[%clk 0:01:30.4]} 15. exf6 {[%clk 0:02:13.2]}
15... Rxf6 {[%clk 0:01:26.2]} 16. Bxa6 {[%clk 0:02:03.1]} 16... Nxa6 {[%clk
0:01:24.2]} 17. Qd3 {[%clk 0:02:04]} 17... h6 {[%clk 0:01:20.4]} 18. Rh3 {[%clk
0:01:56]} 18... Nc5 {[%clk 0:01:15.4]} 19. Qe3 {[%clk 0:01:43.8]} 19... Raf8
{[%clk 0:01:08.8]} 20. Kg1 {[%clk 0:01:38.6]} 20... Bf4 {[%clk 0:01:00.1]} 21.
Qe2 {[%clk 0:01:35.6]} 21... e5 {[%clk 0:00:51.5]} 22. Nf1 {[%clk 0:01:35.6]}
22... e4 {[%clk 0:00:49.3]} 23. Bxf4 {[%clk 0:01:27.9]} 23... Qxf4 {[%clk
0:00:38.8]} 24. Nd4 {[%clk 0:01:27.8]} 24... Nd3 {[%clk 0:00:30.7]} 25. Ne3
{[%clk 0:01:26.8]} 25... Qd6 {[%clk 0:00:20.2]} 26. Rf1 {[%clk 0:01:10.6]} 26...
Rf2 {[%clk 0:00:17.9]} 27. Qh5 {[%clk 0:01:01]} 27... Qf4 {[%clk 0:00:13.2]} 28.
Qxd5+ {[%clk 0:00:40.9]} 28... Kh7 {[%clk 0:00:12.4]} 29. Rxf2 {[%clk
0:00:41.1]} 29... Qxf2+ {[%clk 0:00:12.6]} 30. Kh2 {[%clk 0:00:41.8]} 30... Qf4+
{[%clk 0:00:12.2]} 31. Rg3 {[%clk 0:00:36.9]} 31... Qh4+ {[%clk 0:00:12.2]} 32.
Rh3 {[%clk 0:00:36.6]} 32... Qf4+ {[%clk 0:00:12.3]} 33. Kh1 {[%clk 0:00:34.7]}
33... Nf2+ {[%clk 0:00:10.5]} 34. Kg1 {[%clk 0:00:25.6]} 34... Nxh3+ {[%clk
0:00:10.9]} 35. gxh3 {[%clk 0:00:26.1]} 35... Qf2+ {[%clk 0:00:11.3]} 36. Kh1
{[%clk 0:00:26.6]} 36... Qxe3 {[%clk 0:00:10.5]} 37. Qc4 {[%clk 0:00:18]} 37...
Qxh3+ {[%clk 0:00:10.1]} 38. Kg1 {[%clk 0:00:18.6]} 38... Qg3+ {[%clk
0:00:10.5]} 39. Kh1 {[%clk 0:00:19.1]} 39... Rf4 {[%clk 0:00:09.6]} 0-1

[Event "Early-Titled-Tuesday-Blitz-May-28-2024"]
[Site "Chess.com"]
[Date "2024.05.28"]
[Round "3"]
[White "NCchamp"]
[Black "ATM622"]
[Result "1-0"]
[WhiteElo "2356"]
[BlackElo "2566"]
[TimeControl "180+1"]
[EndTime "8:29:03 PDT"]
[Termination "NCchamp won by resignation"]

1. d4 {[%clk 0:02:59.6]} 1... Nf6 {[%clk 0:02:59.7]} 2. Bg5 {[%clk 0:02:59.4]}
2... d5 {[%clk 0:02:56.3]} 3. e3 {[%clk 0:02:58.2]} 3... Nbd7 {[%clk 0:02:55.8]}
4. Nf3 {[%clk 0:02:48.3]} 4... h6 {[%clk 0:02:54.5]} 5. Bh4 {[%clk 0:02:47.7]}
5... e6 {[%clk 0:02:52.5]} 6. c3 {[%clk 0:02:44]} 6... c5 {[%clk 0:02:52.6]} 7.
Nbd2 {[%clk 0:02:42.9]} 7... Be7 {[%clk 0:02:51.1]} 8. Bd3 {[%clk 0:02:42.4]}
8... O-O {[%clk 0:02:50]} 9. O-O {[%clk 0:02:34.2]} 9... Re8 {[%clk 0:02:47]}
10. Ne5 {[%clk 0:02:31.3]} 10... Nxe5 {[%clk 0:02:39.2]} 11. dxe5 {[%clk
0:02:32.2]} 11... Nd7 {[%clk 0:02:39.5]} 12. Bxe7 {[%clk 0:02:32.4]} 12... Qxe7
{[%clk 0:02:40.4]} 13. f4 {[%clk 0:02:32.4]} 13... c4 {[%clk 0:02:29.1]} 14. Bc2
{[%clk 0:02:27.5]} 14... f5 {[%clk 0:02:27.7]} 15. exf6 {[%clk 0:02:24]} 15...
Nxf6 {[%clk 0:02:22.2]} 16. Nf3 {[%clk 0:02:23.2]} 16... Qc5 {[%clk 0:02:17]}
17. Qd4 {[%clk 0:02:14.4]} 17... b6 {[%clk 0:02:11.2]} 18. Ne5 {[%clk
0:02:09.8]} 18... Bb7 {[%clk 0:02:04.7]} 19. Rf3 {[%clk 0:02:07.4]} 19... Ne4
{[%clk 0:01:54.7]} 20. Raf1 {[%clk 0:02:00.9]} 20... Qxd4 {[%clk 0:01:53.9]} 21.
exd4 {[%clk 0:01:56.7]} 21... Nd2 {[%clk 0:01:54.2]} 22. Rg3 {[%clk 0:01:54.8]}
22... Nxf1 {[%clk 0:01:53.8]} 23. Kxf1 {[%clk 0:01:55.7]} 23... Rf8 {[%clk
0:01:47]} 24. Rf3 {[%clk 0:01:42.4]} 24... Rad8 {[%clk 0:01:42.4]} 25. Ke2
{[%clk 0:01:40.5]} 25... b5 {[%clk 0:01:42.5]} 26. a3 {[%clk 0:01:38.6]} 26...
a5 {[%clk 0:01:42.4]} 27. Ke3 {[%clk 0:01:38.3]} 27... Ba8 {[%clk 0:01:38.6]}
28. Rg3 {[%clk 0:01:36.4]} 28... Rc8 {[%clk 0:01:15.6]} 29. Rh3 {[%clk
0:01:10.8]} 29... Rf6 {[%clk 0:00:36.2]} 30. g4 {[%clk 0:01:10.1]} 30... g5
{[%clk 0:00:34.4]} 31. fxg5 {[%clk 0:01:08.7]} 31... hxg5 {[%clk 0:00:34.2]} 32.
Rh5 {[%clk 0:01:08.3]} 32... Rf1 {[%clk 0:00:23.3]} 33. Rxg5+ {[%clk 0:01:07.9]}
33... Kf8 {[%clk 0:00:23.2]} 34. Rh5 {[%clk 0:01:05.2]} 34... Kg7 {[%clk
0:00:07.6]} 35. Rh7+ {[%clk 0:01:03.5]} 35... Kg8 {[%clk 0:00:07.7]} 36. g5
{[%clk 0:00:43]} 36... Rc1 {[%clk 0:00:07.4]} 37. Bg6 {[%clk 0:00:35.8]} 37...
Rg1 {[%clk 0:00:05.4]} 38. h4 {[%clk 0:00:34.4]} 38... b4 {[%clk 0:00:05.4]} 39.
Rd7 {[%clk 0:00:29.1]} 39... bxc3 {[%clk 0:00:05.2]} 40. bxc3 {[%clk 0:00:29]}
40... Rg3+ {[%clk 0:00:04.5]} 41. Kf4 {[%clk 0:00:28.5]} 41... Rxc3 {[%clk
0:00:03.1]} 42. Bh7+ {[%clk 0:00:21.1]} 42... Kf8 {[%clk 0:00:03.4]} 43. g6
{[%clk 0:00:21.6]} 43... Ke8 {[%clk 0:00:03.5]} 44. g7 {[%clk 0:00:21.4]} 1-0

[Event "Early-Titled-Tuesday-Blitz-May-28-2024"]
[Site "Chess.com"]
[Date "2024.05.28"]
[Round "3"]
[White "ChrisTool2"]
[Black "jraosam"]
[Result "1-0"]
[WhiteElo "2391"]
[BlackElo "2099"]
[TimeControl "180+1"]
[EndTime "8:29:03 PDT"]
[Termination "ChrisTool2 won by resignation"]

1. d4 {[%clk 0:03:00.9]} 1... d5 {[%clk 0:02:59.4]} 2. c4 {[%clk 0:03:01]} 2...
e6 {[%clk 0:02:59.6]} 3. Nf3 {[%clk 0:03:00.7]} 3... Nf6 {[%clk 0:02:59.7]} 4.
Nc3 {[%clk 0:02:59.5]} 4... Be7 {[%clk 0:02:59.7]} 5. Bf4 {[%clk 0:02:56.5]}
5... O-O {[%clk 0:02:58.6]} 6. e3 {[%clk 0:02:56.9]} 6... c5 {[%clk 0:02:56.7]}
7. dxc5 {[%clk 0:02:57.8]} 7... dxc4 {[%clk 0:02:55.7]} 8. Bd6 {[%clk
0:02:32.3]} 8... Bxd6 {[%clk 0:02:38.2]} 9. Qxd6 {[%clk 0:02:29]} 9... Qxd6
{[%clk 0:02:37.9]} 10. cxd6 {[%clk 0:02:29.9]} 10... Rd8 {[%clk 0:02:35.5]} 11.
O-O-O {[%clk 0:02:24.5]} 11... Ne8 {[%clk 0:02:21.8]} 12. Bxc4 {[%clk
0:01:59.5]} 12... a6 {[%clk 0:02:02.1]} 13. Ne4 {[%clk 0:01:55.8]} 13... b5
{[%clk 0:01:58.1]} 14. Bb3 {[%clk 0:01:55.9]} 14... Bb7 {[%clk 0:01:57.7]} 15.
Neg5 {[%clk 0:01:17.8]} 15... h6 {[%clk 0:01:43.2]} 16. Nxe6 {[%clk 0:01:05]}
16... fxe6 {[%clk 0:01:40.9]} 17. Bxe6+ {[%clk 0:01:05.9]} 17... Kh7 {[%clk
0:01:35.5]} 18. d7 {[%clk 0:00:54.6]} 18... Nf6 {[%clk 0:01:28]} 19. Ne5 {[%clk
0:00:54]} 19... Nc6 {[%clk 0:01:23.9]} 20. Nf7 {[%clk 0:00:44]} 20... Rf8 {[%clk
0:01:22.6]} 21. Kb1 {[%clk 0:00:31.2]} 21... Nd8 {[%clk 0:01:21.3]} 22. Nxd8
{[%clk 0:00:24.8]} 22... Rfxd8 {[%clk 0:01:16.7]} 23. f3 {[%clk 0:00:25.2]}
23... Bc6 {[%clk 0:01:14.1]} 24. Rd6 {[%clk 0:00:25.3]} 24... Bxd7 {[%clk
0:01:03]} 25. Rhd1 {[%clk 0:00:23.8]} 25... Bxe6 {[%clk 0:01:03.6]} 26. Rxd8
{[%clk 0:00:23.4]} 26... Ra7 {[%clk 0:01:04.2]} 27. R1d6 {[%clk 0:00:18.3]}
27... Bf5+ {[%clk 0:01:03.3]} 28. e4 {[%clk 0:00:18.5]} 28... Bg6 {[%clk
0:01:00.8]} 29. a3 {[%clk 0:00:16]} 29... a5 {[%clk 0:01:00.6]} 30. g4 {[%clk
0:00:15.2]} 30... b4 {[%clk 0:00:54.8]} 31. axb4 {[%clk 0:00:15.9]} 31... axb4
{[%clk 0:00:55.7]} 32. Rb8 {[%clk 0:00:15.9]} 32... Ra4 {[%clk 0:00:47.8]} 33.
h4 {[%clk 0:00:15.7]} 33... Bf7 {[%clk 0:00:20.5]} 34. Rb7 {[%clk 0:00:16]}
34... Ba2+ {[%clk 0:00:19.8]} 35. Kc1 {[%clk 0:00:15]} 35... Bb3 {[%clk
0:00:18.3]} 36. Rxf6 {[%clk 0:00:13.3]} 36... Ra1+ {[%clk 0:00:18.1]} 37. Kd2
{[%clk 0:00:13.9]} 37... Rd1+ {[%clk 0:00:18.7]} 38. Ke3 {[%clk 0:00:14.3]}
38... Rb1 {[%clk 0:00:15.1]} 39. g5 {[%clk 0:00:14.1]} 39... Rxb2 {[%clk
0:00:14.4]} 40. Rxh6+ {[%clk 0:00:14.3]} 40... Kg8 {[%clk 0:00:13.6]} 41. Rhb6
{[%clk 0:00:12.2]} 41... Bd1 {[%clk 0:00:12.9]} 42. g6 {[%clk 0:00:11.6]} 42...
Re2+ {[%clk 0:00:13.2]} 43. Kf4 {[%clk 0:00:12.1]} 1-0

[Event "Early-Titled-Tuesday-Blitz-May-28-2024"]
[Site "Chess.com"]
[Date "2024.05.28"]
[Round "3"]
[White "AwareIdea"]
[Black "EggLoser"]
[Result "1-0"]
[WhiteElo "2481"]
[BlackElo "2277"]
[TimeControl "180+1"]
[EndTime "8:29:05 PDT"]
[Termination "AwareIdea won by resignation"]

1. c4 {[%clk 0:03:00.9]} 1... e6 {[%clk 0:02:59.9]} 2. Nc3 {[%clk 0:02:56.2]}
2... d5 {[%clk 0:03:00.3]} 3. e3 {[%clk 0:02:56.1]} 3... Nf6 {[%clk 0:02:59.6]}
4. b3 {[%clk 0:02:56.1]} 4... Be7 {[%clk 0:02:57]} 5. Bb2 {[%clk 0:02:54.5]}
5... O-O {[%clk 0:02:56.6]} 6. Qc2 {[%clk 0:02:53.7]} 6... c5 {[%clk 0:02:50.4]}
7. Nf3 {[%clk 0:02:50.8]} 7... Nc6 {[%clk 0:02:49.5]} 8. cxd5 {[%clk 0:02:50.4]}
8... exd5 {[%clk 0:02:50.3]} 9. a3 {[%clk 0:02:50.1]} 9... h6 {[%clk 0:02:47.7]}
10. Be2 {[%clk 0:02:37]} 10... Be6 {[%clk 0:02:45.4]} 11. d4 {[%clk 0:02:31.6]}
11... cxd4 {[%clk 0:02:39.6]} 12. exd4 {[%clk 0:02:32.5]} 12... Rc8 {[%clk
0:02:39.3]} 13. O-O {[%clk 0:02:31.5]} 13... a6 {[%clk 0:02:34.4]} 14. h3 {[%clk
0:02:26.5]} 14... b5 {[%clk 0:02:27.2]} 15. b4 {[%clk 0:02:23.9]} 15... Nd7
{[%clk 0:02:24.1]} 16. Qd2 {[%clk 0:02:00.5]} 16... Nb6 {[%clk 0:02:22.8]} 17.
Rfd1 {[%clk 0:01:56.7]} 17... Bf6 {[%clk 0:02:21.2]} 18. Qf4 {[%clk 0:01:45.6]}
18... Nc4 {[%clk 0:02:13.4]} 19. Bxc4 {[%clk 0:01:45.4]} 19... bxc4 {[%clk
0:02:14.3]} 20. Ne2 {[%clk 0:01:34.1]} 20... Rb8 {[%clk 0:02:09.7]} 21. Bc3
{[%clk 0:01:33.9]} 21... a5 {[%clk 0:02:06.9]} 22. Rab1 {[%clk 0:01:23.4]} 22...
axb4 {[%clk 0:02:04.2]} 23. axb4 {[%clk 0:01:24.3]} 23... Qe7 {[%clk 0:02:02.3]}
24. b5 {[%clk 0:01:18.1]} 24... Na7 {[%clk 0:01:48.9]} 25. Bb4 {[%clk
0:01:14.8]} 25... Qb7 {[%clk 0:01:42.9]} 26. b6 {[%clk 0:01:09.6]} 26... Nc6
{[%clk 0:01:37.1]} 27. Bxf8 {[%clk 0:01:08.1]} 27... Rxf8 {[%clk 0:01:38]} 28.
Nc3 {[%clk 0:00:56.3]} 28... Ra8 {[%clk 0:01:35]} 29. Qd6 {[%clk 0:00:50]} 29...
Bd8 {[%clk 0:01:08.8]} 30. Nxd5 {[%clk 0:00:46]} 30... Bxd5 {[%clk 0:00:51.4]}
31. Qxd5 {[%clk 0:00:46.9]} 31... c3 {[%clk 0:00:51.9]} 32. Rdc1 {[%clk
0:00:38]} 32... Ra5 {[%clk 0:00:38.8]} 33. Qe4 {[%clk 0:00:37.7]} 33... Ra3
{[%clk 0:00:34.1]} 34. Ne5 {[%clk 0:00:33.9]} 34... Na5 {[%clk 0:00:24.9]} 35.
Qxb7 {[%clk 0:00:29]} 35... Nxb7 {[%clk 0:00:25.8]} 36. Nc4 {[%clk 0:00:29.5]}
36... Ra4 {[%clk 0:00:19.7]} 37. Rxc3 {[%clk 0:00:29.2]} 37... Bf6 {[%clk
0:00:19.3]} 38. Rd1 {[%clk 0:00:14.6]} 38... Rb4 {[%clk 0:00:16.8]} 39. Rc2
{[%clk 0:00:14.4]} 39... Kf8 {[%clk 0:00:15.9]} 40. d5 {[%clk 0:00:13.3]} 40...
Ke8 {[%clk 0:00:15.8]} 41. d6 {[%clk 0:00:13.6]} 41... Kd7 {[%clk 0:00:16]} 42.
g3 {[%clk 0:00:12.9]} 42... Bd8 {[%clk 0:00:13.7]} 43. Kg2 {[%clk 0:00:13.1]}
43... Bxb6 {[%clk 0:00:13.9]} 44. Nxb6+ {[%clk 0:00:13.2]} 44... Rxb6 {[%clk
0:00:14.8]} 45. Rc7+ {[%clk 0:00:13.5]} 45... Kd8 {[%clk 0:00:14.6]} 46. Rxf7
{[%clk 0:00:13.5]} 46... Nxd6 {[%clk 0:00:13.7]} 47. Rxg7 {[%clk 0:00:12.7]}
47... Ke8 {[%clk 0:00:14.2]} 48. Rg6 {[%clk 0:00:12.2]} 48... Nc4 {[%clk
0:00:13.8]} 49. Rxb6 {[%clk 0:00:12]} 49... Nxb6 {[%clk 0:00:14.7]} 50. Rd6
{[%clk 0:00:12.3]} 50... Nc4 {[%clk 0:00:15.5]} 51. Rxh6 {[%clk 0:00:13.2]}
51... Ne5 {[%clk 0:00:15.4]} 52. Re6+ {[%clk 0:00:12.4]} 1-0